lending/lending_fUSD_20250508
["ID","MTS","AMOUNT","RATE_DAILY","PERIOD"]
[360317259,1746739965963,154.66,0.0003,31]
[360317260,1746739966499,154.66,0.0003,31]
[360317261,1746739966551,154.66,0.0003,31]
[360317262,1746739966716,154.66,0.0003,31]
[360317265,1746739997704,500.0,0.00030136,120]
[360317267,1746740004743,492.21,0.00019448,2]
[360317268,1746740012010,2302.83663554,0.00019448,2]
[360317269,1746740012033,1756.40336446,0.00019448,2]
[360317270,1746740047084,1500.0,0.00019323,2]
[360317271,1746740048248,-158.7,0.00019572,2]
[360317274,1746740135083,1621.81,0.00019375,2]
[360317277,1746740213494,5854.64,0.00019202,2]
[360317278,1746740257973,10000.0,0.00030137,120]
[360317279,1746740274840,150.0,0.00019109,7]
[360317281,1746740279639,10000.0,0.00030137,120]
[360317283,1746740296783,10000.0,0.00030137,120]
[360317284,1746740312634,10000.0,0.00030137,120]
[360317285,1746740337102,9936.0,0.00030137,120]
[360317288,1746740484604,2693.16,0.00018959,2]
[360317809,1746740567440,154.57,0.0003,31]
[360317810,1746740567526,154.57,0.0003,31]
[360317811,1746740567579,154.57,0.0003,31]
[360317812,1746740567623,154.57,0.0003,31]
[360317813,1746740567666,154.57,0.0003,31]
[360317814,1746740567708,154.57,0.0003,31]
[360317815,1746740567762,154.57,0.0003,31]
[360317816,1746740567817,154.57,0.0003,31]
[360317817,1746740567870,154.57,0.0003,31]
[360317818,1746740567950,154.57,0.0003,31]
[360317819,1746740569119,23900.0,0.00018952,2]
[360317822,1746740600016,500.0,0.00030137,120]
[360317823,1746740611159,2340.17,0.0001889,2]
[360317824,1746740633258,1000.0,0.00018876,2]
[360317825,1746740665713,1531.66,0.00016972,2]
[360317826,1746740666369,1531.66,0.00019236,2]
[360317828,1746740674392,500.0,0.0003013,120]
[360317829,1746740706430,169.2183201,0.00017975,2]
[360317830,1746740706495,169.2183201,0.00017996,2]
[360317831,1746740706572,169.2183201,0.00018016,2]
[360317832,1746740706636,169.2183201,0.00018036,2]
[360317833,1746740706714,169.2183201,0.00018056,2]
[360317834,1746740706778,169.2183201,0.00018076,2]
[360317835,1746740706849,169.2183201,0.00018096,2]
[360317836,1746740706923,169.2183201,0.00018117,2]
[360317837,1746740706986,169.2183201,0.00018137,2]
[360317838,1746740707066,169.2183201,0.00018157,2]
[360317839,1746740707676,169.2183201,0.00018177,2]
[360317840,1746740707706,169.2183201,0.00018197,2]
[360317841,1746740707735,169.2183201,0.00018217,2]
[360317842,1746740707764,169.2183201,0.00018238,2]
[360317843,1746740707793,169.2183201,0.00018278,2]
[360317844,1746740707823,169.2183201,0.00018258,2]
[360317845,1746740707863,169.2183201,0.00018298,2]
[360317846,1746740707906,169.2183201,0.00018318,2]
[360317847,1746740707937,169.2183201,0.00018338,2]
[360317848,1746740707982,169.2183201,0.00018359,2]
[360317849,1746740708017,169.2183201,0.00018379,2]
[360317850,1746740708059,169.2183201,0.00018419,2]
[360317851,1746740708089,169.2183201,0.00018439,2]
[360317852,1746740708123,169.2183201,0.0001846,2]
[360317853,1746740708160,169.2183201,0.0001848,2]
[360317854,1746740708209,169.2183201,0.000185,2]
[360317855,1746740708275,169.2183201,0.0001852,2]
[360317856,1746740708350,169.2183201,0.0001854,2]
[360317857,1746740708419,169.2183201,0.0001856,2]
[360317858,1746740708488,169.2183201,0.00018581,2]
[360317859,1746740708555,169.2183201,0.00018601,2]
[360317860,1746740708628,169.2183201,0.00018621,2]
[360317861,1746740708706,169.2183201,0.00018641,2]
[360317862,1746740708768,169.2183201,0.00018661,2]
[360317863,1746740708852,169.2183201,0.00018681,2]
[360317864,1746740708918,169.2183201,0.00018702,2]
[360317865,1746740708981,169.2183201,0.00018722,2]
[360317866,1746740709063,169.2183201,0.00018742,2]
[360317867,1746740709209,169.2183201,0.00018782,2]
[360317868,1746740709260,169.2183201,0.00018762,2]
[360317869,1746740709327,169.2183201,0.00018802,2]
[360317870,1746740710810,169.2183201,0.00018823,2]
[360317871,1746740710848,169.2183201,0.00018843,2]
[360317872,1746740710885,169.2183201,0.00018863,2]
[360317873,1746740710917,169.2183201,0.00018883,2]
[360317874,1746740710953,169.2183201,0.00018903,2]
[360317875,1746740710991,169.2183201,0.00018924,2]
[360317876,1746740711025,169.2183201,0.00018964,2]
[360317877,1746740711059,169.2183201,0.00018984,2]
[360317878,1746740711094,169.2183201,0.00019004,2]
[360317879,1746740711129,169.2183201,0.00019045,2]
[360317880,1746740711163,169.2183201,0.00019024,2]
[360317881,1746740711193,169.2183201,0.00019065,2]
[360317882,1746740711224,169.2183201,0.00019085,2]
[360317883,1746740711253,169.2183201,0.00019105,2]
[360317884,1746740711290,169.2183201,0.00019125,2]
[360317885,1746740711320,169.2183201,0.00019145,2]
[360317886,1746740711353,169.2183201,0.00019166,2]
[360317887,1746740711383,169.2183201,0.00019186,4]
[360317888,1746740711414,169.2183201,0.00019206,4]
[360317889,1746740711446,169.2183201,0.00019226,4]
[360317890,1746740711482,169.2183201,0.00019246,4]
[360317891,1746740711511,169.2183201,0.00019267,4]
[360317892,1746740711540,169.2183201,0.00019287,4]
[360317893,1746740711573,169.2183201,0.00019307,4]
[360317894,1746740711602,169.2183201,0.00019327,4]
[360317895,1746740711635,169.2183201,0.00019347,4]
[360317896,1746740711666,169.2183201,0.00019367,4]
[360317897,1746740711703,169.2183201,0.00019388,4]
[360317898,1746740711734,169.2183201,0.00019408,4]
[360317899,1746740711763,169.2183201,0.00019428,4]
[360317900,1746740711803,169.2183201,0.00019448,4]
[360317901,1746740711834,169.2183201,0.00019468,4]
[360317902,1746740711868,169.2183201,0.00019488,4]
[360317903,1746740712065,169.2183201,0.00018399,2]
[360317904,1746740712149,169.2183201,0.00018944,2]
[360317905,1746740713529,150.0,0.00017975,2]
[360317906,1746740713687,265.60792792,0.00017975,2]
[360317907,1746740713753,265.60792792,0.00017996,2]
[360317908,1746740713828,265.60792792,0.00018016,2]
[360317909,1746740713901,265.60792792,0.00018036,2]
[360317910,1746740713979,265.60792792,0.00018056,2]
[360317911,1746740714040,265.60792792,0.00018076,2]
[360317912,1746740714114,265.60792792,0.00018096,2]
[360317913,1746740714186,265.60792792,0.00018117,2]
[360317914,1746740714281,265.60792792,0.00018137,2]
[360317915,1746740714320,265.60792792,0.00018157,2]
[360317916,1746740714399,265.60792792,0.00018177,2]
[360317917,1746740714465,265.60792792,0.00018197,2]
[360317918,1746740714531,265.60792792,0.00018217,2]
[360317919,1746740714602,265.60792792,0.00018238,2]
[360317920,1746740714675,265.60792792,0.00018258,2]
[360317921,1746740714744,265.60792792,0.00018278,2]
[360317922,1746740714822,265.60792792,0.00018298,2]
[360317923,1746740714895,265.60792792,0.00018318,2]
[360317924,1746740714966,265.60792792,0.00018338,2]
[360317925,1746740715054,265.60792792,0.00018379,2]
[360317926,1746740715119,265.60792792,0.00018399,2]
[360317927,1746740715193,265.60792792,0.00018419,2]
[360317928,1746740715264,265.60792792,0.00018439,2]
[360317929,1746740715466,-169.2183201,0.00019509,4]
[360317930,1746740715491,-82.73052335,0.00019529,4]
[360317931,1746740716071,265.60792792,0.0001846,2]
[360317932,1746740716935,265.60792792,0.00018641,2]
[360317934,1746740717523,265.60792792,0.00018823,2]
[360317935,1746740717863,265.60792792,0.00018964,2]
[360317936,1746740718005,265.60792792,0.00019105,2]
[360317937,1746740718069,265.60792792,0.00019166,2]
[360317938,1746740718121,265.60792792,0.00018944,2]
[360317939,1746740718185,265.60792792,0.00019267,4]
[360317940,1746740718224,265.60792792,0.00019004,2]
[360317941,1746740718281,265.60792792,0.00019226,4]
[360317942,1746740718326,265.60792792,0.00019024,2]
[360317943,1746740718378,265.60792792,0.00019327,4]
[360317944,1746740718439,265.60792792,0.00019206,4]
[360317945,1746740718488,265.60792792,0.00019287,4]
[360317946,1746740718532,265.60792792,0.00019367,4]
[360317947,1746740718584,265.60792792,0.00019388,4]
[360317948,1746740718646,265.60792792,0.00019186,4]
[360317949,1746740719142,265.60792792,0.00019125,2]
[360317950,1746740719240,265.60792792,0.00019488,4]
[360317951,1746740719270,265.60792792,0.00019468,4]
[360317952,1746740719300,265.60792792,0.00019347,4]
[360317953,1746740719348,265.60792792,0.00019448,4]
[360317954,1746740719406,265.60792792,0.00019408,4]
[360317955,1746740719443,265.60792792,0.00019307,4]
[360317956,1746740719512,265.60792792,0.00019428,4]
[360317957,1746740720557,-152.26893376,0.00019509,4]
[360317958,1746740720732,150.0,0.00017975,2]
[360317959,1746740721727,150.0,0.00018,2]
[360317960,1746740721764,150.0,0.00018049,2]
[360317961,1746740721794,150.0,0.00018074,2]
[360317962,1746740721939,150.0,0.00018099,2]
[360317963,1746740721972,150.0,0.00018123,2]
[360317964,1746740722007,150.0,0.00018148,2]
[360317965,1746740722036,150.0,0.00018025,2]
[360317966,1746740722065,150.0,0.00018173,2]
[360317967,1746740722094,150.0,0.00018197,2]
[360317968,1746740722126,150.0,0.00018222,2]
[360317969,1746740722155,150.0,0.00018247,2]
[360317970,1746740722194,150.0,0.00018271,2]
[360317971,1746740722597,150.0,0.00018296,2]
[360317972,1746740722627,150.0,0.00018321,2]
[360317973,1746740722657,150.0,0.00018345,2]
[360317974,1746740722687,150.0,0.0001837,2]
[360317975,1746740722721,150.0,0.00018395,2]
[360317976,1746740722752,150.0,0.00018419,2]
[360317977,1746740722786,150.0,0.00018444,2]
[360317978,1746740722817,150.0,0.00018468,2]
[360317979,1746740722849,150.0,0.00018493,2]
[360317980,1746740722883,150.0,0.00018518,2]
[360317981,1746740722919,150.0,0.00018542,2]
[360317982,1746740722953,150.0,0.00018567,2]
[360317983,1746740722984,150.0,0.00018592,2]
[360317984,1746740723014,150.0,0.00018616,2]
[360317985,1746740723048,150.0,0.00018641,2]
[360317986,1746740723078,150.0,0.00018666,2]
[360317987,1746740723108,150.0,0.0001869,2]
[360317988,1746740723138,150.0,0.00018715,2]
[360317989,1746740723169,150.0,0.0001874,2]
[360317990,1746740723208,150.0,0.00018764,2]
[360317991,1746740723238,150.0,0.00018789,2]
[360317992,1746740723273,150.0,0.00018814,2]
[360317993,1746740723303,150.0,0.00018838,2]
[360317994,1746740723333,150.0,0.00018863,2]
[360317995,1746740723372,150.0,0.00018888,2]
[360317996,1746740723402,150.0,0.00018912,2]
[360317997,1746740723437,150.0,0.00018937,2]
[360317998,1746740723513,150.0,0.00018962,2]
[360317999,1746740723598,150.0,0.00018986,2]
[360318000,1746740723647,150.0,0.00019011,2]
[360318001,1746740723718,150.0,0.00019036,2]
[360318002,1746740723795,150.0,0.0001906,2]
[360318003,1746740723864,150.0,0.00019085,2]
[360318004,1746740723935,150.0,0.0001911,2]
[360318005,1746740724006,150.0,0.00019134,2]
[360318006,1746740724071,150.0,0.00019159,2]
[360318007,1746740724154,150.0,0.00019184,4]
[360318008,1746740724226,150.0,0.00019208,4]
[360318009,1746740724285,150.0,0.00019233,4]
[360318010,1746740724353,150.0,0.00019258,4]
[360318011,1746740724426,150.0,0.00019282,4]
[360318012,1746740724515,150.0,0.00019307,4]
[360318013,1746740724575,150.0,0.00019332,4]
[360318014,1746740724639,150.0,0.00019356,4]
[360318015,1746740724733,150.0,0.00019381,4]
[360318016,1746740724787,150.0,0.00019405,4]
[360318017,1746740724854,150.0,0.0001943,4]
[360318018,1746740724923,150.0,0.00019455,4]
[360318019,1746740724990,150.0,0.00019479,4]
[360318020,1746740728541,150.0,0.00017975,2]
[360318021,1746740729659,265.60792792,0.00019045,2]
[360318022,1746740734649,150.0,0.00017975,2]
[360318023,1746740734719,150.0,0.00018118,2]
[360318024,1746740734792,150.0,0.00018261,2]
[360318025,1746740734856,150.0,0.00018403,2]
[360318026,1746740734935,150.0,0.00018546,2]
[360318027,1746740735016,150.0,0.00018689,2]
[360318028,1746740735074,150.0,0.00018831,2]
[360318029,1746740735142,150.0,0.00018974,2]
[360318030,1746740735197,150.0,0.00019117,2]
[360318031,1746740735233,150.0,0.00019259,4]
[360318032,1746740735305,150.0,0.00019402,4]
[360318033,1746740735722,150.0,0.00017975,2]
[360318034,1746740735829,150.0,0.00018029,2]
[360318035,1746740735870,150.0,0.00018083,2]
[360318036,1746740735943,150.0,0.00018137,2]
[360318037,1746740736027,150.0,0.00018191,2]
[360318038,1746740736081,150.0,0.00018245,2]
[360318039,1746740736138,150.0,0.00018299,2]
[360318040,1746740736206,-150.0,0.00019504,4]
[360318041,1746740736231,-66.19529781,0.00019509,4]
[360318042,1746740736279,150.0,0.00018353,2]
[360318043,1746740736316,150.0,0.00018407,2]
[360318044,1746740736396,150.0,0.00018461,2]
[360318045,1746740736464,150.0,0.00018515,2]
[360318046,1746740736498,150.0,0.00018569,2]
[360318047,1746740736531,150.0,0.00018623,2]
[360318048,1746740736614,150.0,0.00018677,2]
[360318049,1746740736657,150.0,0.00018731,2]
[360318050,1746740736737,150.0,0.00018785,2]
[360318051,1746740736846,150.0,0.00018839,2]
[360318052,1746740736890,150.0,0.00018893,2]
[360318053,1746740736946,150.0,0.00018947,2]
[360318054,1746740737034,150.0,0.00019001,2]
[360318055,1746740737106,150.0,0.00019055,2]
[360318056,1746740737153,150.0,0.00019109,2]
[360318057,1746740737224,150.0,0.00019163,2]
[360318058,1746740737323,150.0,0.00019217,4]
[360318059,1746740737440,150.0,0.00019325,4]
[360318060,1746740737504,150.0,0.00019379,4]
[360318061,1746740737601,150.0,0.00019433,4]
[360318062,1746740737653,150.0,0.00019487,4]
[360318063,1746740738404,150.0,0.00017975,2]
[360318064,1746740738476,150.0,0.00018157,2]
[360318065,1746740738539,150.0,0.00018338,2]
[360318066,1746740738612,150.0,0.0001852,2]
[360318067,1746740738683,150.0,0.00018702,2]
[360318068,1746740738760,150.0,0.00018883,2]
[360318069,1746740738826,150.0,0.00019065,2]
[360318070,1746740739449,150.0,0.00019246,4]
[360318071,1746740739480,150.0,0.00019428,4]
[360318072,1746740739549,150.0,0.00017975,2]
[360318073,1746740739583,150.0,0.00018034,2]
[360318074,1746740739612,150.0,0.00018093,2]
[360318075,1746740739643,150.0,0.00018152,2]
[360318076,1746740739695,150.0,0.0001821,2]
[360318077,1746740739728,150.0,0.00018269,2]
[360318078,1746740739759,150.0,0.00018328,2]
[360318079,1746740739792,150.0,0.00018387,2]
[360318080,1746740739851,150.0,0.00018504,2]
[360318081,1746740739918,150.0,0.00018563,2]
[360318082,1746740739978,150.0,0.00018622,2]
[360318083,1746740740049,150.0,0.0001868,2]
[360318084,1746740740120,150.0,0.00018739,2]
[360318085,1746740740189,150.0,0.00018798,2]
[360318086,1746740740259,150.0,0.00018856,2]
[360318087,1746740740337,150.0,0.00018915,2]
[360318088,1746740740389,150.0,0.00018445,2]
[360318089,1746740740457,150.0,0.00018974,2]
[360318090,1746740740525,150.0,0.00019033,2]
[360318091,1746740740557,150.0,0.00019091,2]
[360318092,1746740740613,150.0,0.0001915,2]
[360318093,1746740740689,150.0,0.00019209,4]
[360318094,1746740740762,150.0,0.00019268,4]
[360318095,1746740740828,150.0,0.00019326,4]
[360318096,1746740740911,150.0,0.00019385,4]
[360318097,1746740740968,150.0,0.00019444,4]
[360318098,1746740741724,150.0,0.00017975,2]
[360318099,1746740741756,150.0,0.00018012,2]
[360318100,1746740741820,150.0,0.00018048,2]
[360318101,1746740741906,150.0,0.00018084,2]
[360318102,1746740741964,150.0,0.00018121,2]
[360318103,1746740742026,150.0,0.00018157,2]
[360318104,1746740742109,150.0,0.00018193,2]
[360318105,1746740742166,150.0,0.0001823,2]
[360318106,1746740742240,150.0,0.00018266,2]
[360318107,1746740742306,150.0,0.00018302,2]
[360318108,1746740742383,150.0,0.00018338,2]
[360318109,1746740742452,150.0,0.00018375,2]
[360318110,1746740742521,150.0,0.00018411,2]
[360318111,1746740742588,150.0,0.00018447,2]
[360318112,1746740742666,150.0,0.00018484,2]
[360318113,1746740742745,150.0,0.0001852,2]
[360318114,1746740742808,150.0,0.00018556,2]
[360318115,1746740744213,150.0,0.00018593,2]
[360318116,1746740744269,150.0,0.00018629,2]
[360318117,1746740744303,150.0,0.00018665,2]
[360318118,1746740744343,150.0,0.00018702,2]
[360318119,1746740744445,150.0,0.00018774,2]
[360318120,1746740744479,150.0,0.00018811,2]
[360318121,1746740744509,150.0,0.00018847,2]
[360318122,1746740744560,150.0,0.00018883,2]
[360318123,1746740744594,150.0,0.0001892,2]
[360318124,1746740744629,150.0,0.00018956,2]
[360318125,1746740744664,150.0,0.00018992,2]
[360318126,1746740744723,150.0,0.00019028,2]
[360318127,1746740744754,150.0,0.00019065,2]
[360318128,1746740744784,150.0,0.00019101,2]
[360318129,1746740744836,150.0,0.00019137,2]
[360318130,1746740744870,150.0,0.00019174,2]
[360318131,1746740744902,150.0,0.00018738,2]
[360318132,1746740744933,150.0,0.0001921,4]
[360318133,1746740744967,500.0,0.0003013,120]
[360318134,1746740745002,150.0,0.00019246,4]
[360318135,1746740745058,150.0,0.00019283,4]
[360318136,1746740745089,150.0,0.00019271,4]
[360318137,1746740745122,150.0,0.00019319,4]
[360318138,1746740745195,150.0,0.00019355,4]
[360318139,1746740745253,150.0,0.00019428,4]
[360318140,1746740745290,150.0,0.00019464,4]
[360318141,1746740745338,150.0,0.00019501,4]
[360318142,1746740745666,150.0,0.00017975,2]
[360318143,1746740745702,150.0,0.00019392,4]
[360318144,1746740745733,150.0,0.00018197,2]
[360318145,1746740745785,150.0,0.00018419,2]
[360318146,1746740745932,150.0,0.00018641,2]
[360318147,1746740746003,150.0,0.00018863,2]
[360318148,1746740746075,150.0,0.00019085,2]
[360318149,1746740746139,150.0,0.00019307,4]
[360318150,1746740748016,150.0,0.00017975,2]
[360318151,1746740748058,150.0,0.00018475,2]
[360318152,1746740748132,150.0,0.00018974,2]
[360318153,1746740748214,150.0,0.00019473,4]
[360318154,1746740750523,150.0,0.00017975,2]
[360318155,1746740750554,150.0,0.00018197,2]
[360318156,1746740750607,150.0,0.00018419,2]
[360318157,1746740750642,150.0,0.00018641,2]
[360318158,1746740750710,150.0,0.00018863,2]
[360318159,1746740750759,150.0,0.00019085,2]
[360318160,1746740750791,150.0,0.00019307,4]
[360318161,1746740751119,-150.0,0.00019503,4]
[360318162,1746740751143,-11.0162721,0.00019509,4]
[360318163,1746740752193,500.0,0.0003013,120]
[360318164,1746740759403,500.0,0.0003013,120]
[360318165,1746740765515,-36.12742425,0.00019509,4]
[360318166,1746740765540,-207.9566215,0.00019519,2]
[360318167,1746740768455,500.0,0.0003013,120]
[360318168,1746740775727,500.0,0.0003013,120]
[360318170,1746740780575,-42.0433785,0.00019519,2]
[360318171,1746740780601,-86.48779675,0.00019529,4]
[360318172,1746740780626,-49.58630032,0.00019529,4]
[360318173,1746740783214,500.0,0.0003013,120]
[360318174,1746740791508,500.0,0.0003013,120]
[360318175,1746740795524,-216.0216276,0.00019529,4]
[360318176,1746740795549,-67.9183724,0.00019529,4]
[360318177,1746740799088,500.0,0.0003013,120]
[360318178,1746740806020,500.0,0.0003013,120]
[360318179,1746740810654,-82.0816276,0.00019529,4]
[360318180,1746740810678,-150.0,0.00019529,4]
[360318181,1746740810701,-67.9183724,0.00019529,4]
[360318182,1746740813183,500.0,0.0003013,120]
[360318183,1746740826247,-82.0816276,0.00019529,4]
[360318184,1746740826273,-127.45335117,0.00019529,2]
[360318185,1746740828519,500.0,0.0003013,120]
[360318186,1746740837255,500.0,0.0003013,120]
[360318187,1746740840693,-239.21696416,0.00019532,2]
[360318191,1746740856279,-10.78303584,0.00019532,2]
[360318192,1746740856303,-150.0,0.00019537,4]
[360318193,1746740856327,-35.6776882,0.00019541,4]
[360318194,1746740864484,741.836377,0.0003013,120]
[360318196,1746740870557,-114.3223118,0.00019541,4]
[360318197,1746740870580,-150.7932188,0.00019541,2]
[360318198,1746740870603,-13.92023163,0.00019545,4]
[360318201,1746740886464,-136.07976837,0.00019545,4]
[360318202,1746740886488,-15.92023163,0.00019545,2]
[360318203,1746740900560,-234.07976837,0.00019545,2]
[360318204,1746740900586,-19.29409299,0.00019545,2]
[360318205,1746740902459,10000.0,0.00030137,120]
[360318206,1746740909175,1072.72,0.00018726,2]
[360318207,1746740909865,1072.72,0.00025748,120]
[360318208,1746740910127,1072.72,0.00028088,120]
[360318209,1746740916140,-291.4059626,0.00019545,2]
[360318210,1746740920276,10000.0,0.00030137,120]
[360318211,1746740930541,-169.2183201,0.00019549,4]
[360318212,1746740930565,-30.7816799,0.00019549,4]
[360318213,1746740934277,-1644.45276319,0.00030137,120]
[360318214,1746740934305,-40355.50205082,0.00030137,120]
[360318215,1746740934333,-33052.0,0.00030137,120]
[360318216,1746740934360,-500.0,0.000302,120]
[360318217,1746740934391,-250.0,0.000308,30]
[360318218,1746740934423,-154.57,0.000308,31]
[360318219,1746740934456,-154.57,0.000308,31]
[360318220,1746740934486,-154.57,0.000308,31]
[360318221,1746740934516,-154.57,0.000308,31]
[360318222,1746740934546,-154.57,0.000308,31]
[360318223,1746740934575,-154.57,0.000308,31]
[360318224,1746740934602,-6000.00000001,0.000309,60]
[360318225,1746740934629,-3600.0,0.00031,32]
[360318226,1746740934656,-11122.02047828,0.00031,120]
[360318227,1746740934683,-952.5,0.0003105,30]
[360318228,1746740934710,-312.06412331,0.0003167,40]
[360318229,1746740934744,-154.57,0.000317,31]
[360318230,1746740934776,-154.57,0.000317,31]
[360318231,1746740934808,-154.57,0.000317,31]
[360318232,1746740934839,-154.57,0.000317,31]
[360318233,1746740934871,-154.57,0.000317,31]
[360318234,1746740934904,-154.57,0.000317,31]
[360318235,1746740934938,-1000.0,0.00031834,30]
[360318236,1746740934967,-1333.0,0.00031945,120]
[360318237,1746740934993,-153.47029381,0.00032,30]
[360318238,1746740935022,-1800.0,0.00032,33]
[360318239,1746740935049,-366.0,0.00032,120]
[360318240,1746740935074,-10000.0,0.00032,120]
[360318241,1746740935101,-10000.0,0.00032,120]
[360318242,1746740935128,-312.12634777,0.00032,120]
[360318243,1746740935154,-177.63921691,0.00032,120]
[360318244,1746740935181,-500.0,0.00032136,120]
[360318245,1746740935214,-154.57,0.000326,31]
[360318246,1746740935246,-154.57,0.000326,31]
[360318247,1746740935278,-154.57,0.000326,31]
[360318248,1746740935309,-154.57,0.000326,31]
[360318249,1746740935343,-154.57,0.000326,31]
[360318250,1746740935375,-154.57,0.000326,31]
[360318251,1746740935412,-500.0,0.00032876,120]
[360318252,1746740935439,-500.0,0.00032876,120]
[360318253,1746740935465,-500.0,0.00032876,120]
[360318254,1746740935492,-500.0,0.00032876,120]
[360318255,1746740935518,-500.0,0.00032876,120]
[360318256,1746740935544,-500.0,0.00032876,120]
[360318257,1746740935570,-500.0,0.00032876,120]
[360318258,1746740936109,-500.0,0.00032876,120]
[360318259,1746740936136,-500.0,0.00032876,120]
[360318260,1746740936162,-500.0,0.00032876,120]
[360318261,1746740936188,-500.0,0.00032876,120]
[360318262,1746740936213,-500.0,0.00032876,120]
[360318263,1746740936238,-500.0,0.00032876,120]
[360318264,1746740936263,-500.0,0.00032876,120]
[360318265,1746740936287,-409.98246283,0.00032876,120]
[360318266,1746740936314,-1000.0,0.00032901,30]
[360318267,1746740936341,-1185.6,0.00032904,30]
[360318268,1746740936366,-433.73397336,0.00033,120]
[360318269,1746740936393,-1800.0,0.00033,34]
[360318270,1746740936421,-500.0,0.00033,30]
[360318271,1746740936456,-154.57,0.000335,31]
[360318272,1746740936486,-154.57,0.000335,31]
[360318273,1746740936517,-154.57,0.000335,31]
[360318274,1746740936545,-990.85384142,0.0003387,120]
[360318275,1746740936571,-2000.0,0.00034,120]
[360318276,1746740936597,-1800.0,0.00034,35]
[360318277,1746740936623,-2546.3861206,0.00034,30]
[360318278,1746740936649,-500.0,0.00034136,120]
[360318279,1746740936682,-800.0,0.00034748,31]
[360318280,1746740936712,-959799.27487051,0.0003479,30]
[360318281,1746740936748,-1065.65455931,0.000349,30]
[360318282,1746740936774,-250.5261745,0.000349,120]
[360318283,1746740936801,-2356.48362064,0.00034978,39]
[360318284,1746740936828,-468.6654435,0.00035,30]
[360318285,1746740936855,-2146.0,0.00035,60]
[360318286,1746740936882,-10011.67055752,0.00035,120]
[360318287,1746740936911,-18209.15425068,0.00035,30]
[360318288,1746740936942,-167.00065723,0.00035,30]
[360318289,1746740936970,-1800.0,0.00035,36]
[360318290,1746740936998,-7313.99704777,0.000351,30]
[360318291,1746740937030,-529.0,0.00036,120]
[360318292,1746740937057,-2000.0,0.00036,120]
[360318293,1746740937083,-1800.0,0.00036,37]
[360318294,1746740937110,-5000.0,0.00036,120]
[360318295,1746740937135,-1934.57249112,0.00036,60]
[360318296,1746740937167,-480.470065,0.00036136,120]
[360318297,1746740937193,-1000.0,0.00036416,30]
[360318298,1746740937219,-2915.20380978,0.000365,120]
[360318299,1746740937248,-1800.0,0.00037,38]
[360318300,1746740937273,-500.0,0.00037,120]